{"text_format":"3","workbook":"xlsx","n_sheets":3,"sheets":["Dagsschema","Händelseschemaläggare","Tidsintervall"],"not_rendered":{"defined_names":21},"read":"whole","date_system":"1900"}

{"sheet":"Dagsschema","index":0,"n_rows":76,"n_cols":13,"rows_kept":76,"merged":[[0,1,0,2],[1,1,5,2],[2,12,4,12],[3,7,4,7],[5,12,7,12],[6,1,8,2],[8,12,10,12],[9,7,10,7],[10,1,10,2],[11,12,13,12],[14,12,16,12],[15,7,16,7],[17,12,19,12],[18,1,18,2],[20,12,22,12],[21,7,22,7],[23,12,25,12],[24,1,24,2],[25,1,25,2],[26,7,27,7],[26,12,28,12],[29,12,31,12],[31,7,32,7],[32,12,34,12]]}
[null,"Dagsschema"]
[null,{"$f":"IFERROR(DAY(DatumVär),\"\")","v":""},null,null,"Tid",{"$f":"IFERROR(UPPER(TEXT(DATE(RapportÅr,MånadNummer,RapportDag),\"D MMMM ÅÅÅÅ\")),\"\")","v":"21 JUNE TUESDAY"},null,"VECKOÖVERSIKT",{"$nulls":3},"ANTECKNINGAR/ATT GÖRA-LISTA"]
[{"$nulls":4},"Tid","Beskrivning",null,{"$f":"IFERROR(TEXT(DATEVALUE(DatumVär)+1,\"DDDD\"),\"\")","v":""},{"$f":"IFERROR(INDEX(Händelseschemaläggare[],MATCH($H$6&\"|\"&ROW(A1),Händelseschemaläggare[UNIKT VÄRDE (BERÄKNAT)],0),2),\"\")","v":""},{"$f":"IFERROR(INDEX(Händelseschemaläggare[],MATCH($H$6&\"|\"&ROW(A1),Händelseschemaläggare[UNIKT VÄRDE (BERÄKNAT)],0),3),\"\")","v":""},null,null,"Hämta kemtvätt"]
[{"$nulls":4},{"$f":"Tidsintervall!E3","v":"06:00:00"},{"$f":"IFERROR(INDEX(Händelseschemaläggare[],MATCH(DATEVALUE(DatumVär)&Dagsschema[[#This Row],[Tid]],SökDatumOchTid,0),3),\"\")","v":""},null,{"$f":"IFERROR(TEXT(DATEVALUE(DatumVär)+1,\"D\"),\"\")","v":""},{"$f":"IFERROR(INDEX(Händelseschemaläggare[],MATCH($H$6&\"|\"&ROW(A2),Händelseschemaläggare[UNIKT VÄRDE (BERÄKNAT)],0),2),\"\")","v":""},{"$f":"IFERROR(INDEX(Händelseschemaläggare[],MATCH($H$6&\"|\"&ROW(A2),Händelseschemaläggare[UNIKT VÄRDE (BERÄKNAT)],0),3),\"\")","v":""}]
[{"$nulls":4},{"$f":"Tidsintervall!E4","v":"06:15:00"},{"$f":"IFERROR(INDEX(Händelseschemaläggare[],MATCH(DATEVALUE(DatumVär)&Dagsschema[[#This Row],[Tid]],SökDatumOchTid,0),3),\"\")","v":""},null,null,{"$f":"IFERROR(INDEX(Händelseschemaläggare[],MATCH($H$6&\"|\"&ROW(A3),Händelseschemaläggare[UNIKT VÄRDE (BERÄKNAT)],0),2),\"\")","v":""},{"$f":"IFERROR(INDEX(Händelseschemaläggare[],MATCH($H$6&\"|\"&ROW(A3),Händelseschemaläggare[UNIKT VÄRDE (BERÄKNAT)],0),3),\"\")","v":""}]
[{"$nulls":4},{"$f":"Tidsintervall!E5","v":"06:30:00"},{"$f":"IFERROR(INDEX(Händelseschemaläggare[],MATCH(DATEVALUE(DatumVär)&Dagsschema[[#This Row],[Tid]],SökDatumOchTid,0),3),\"\")","v":""},null,{"$f":"IFERROR(DatumVär+1,\"\")","v":""},{"$f":"IFERROR(INDEX(Händelseschemaläggare[],MATCH($H$6&\"|\"&ROW(A4),Händelseschemaläggare[UNIKT VÄRDE (BERÄKNAT)],0),2),\"\")","v":""},{"$f":"IFERROR(INDEX(Händelseschemaläggare[],MATCH($H$6&\"|\"&ROW(A4),Händelseschemaläggare[UNIKT VÄRDE (BERÄKNAT)],0),3),\"\")","v":""},null,null,"Ringa kabel-tv-leverantören"]
[null,{"$f":"IFERROR(TEXT(DatumVär,\"DDDD\"),\"\")","v":"21 JUNE TUESDAY"},null,null,{"$f":"Tidsintervall!E6","v":"06:45:00"},{"$f":"IFERROR(INDEX(Händelseschemaläggare[],MATCH(DATEVALUE(DatumVär)&Dagsschema[[#This Row],[Tid]],SökDatumOchTid,0),3),\"\")","v":""},null,null,{"$f":"IFERROR(INDEX(Händelseschemaläggare[],MATCH($H$6&\"|\"&ROW(A5),Händelseschemaläggare[UNIKT VÄRDE (BERÄKNAT)],0),2),\"\")","v":""},{"$f":"IFERROR(INDEX(Händelseschemaläggare[],MATCH($H$6&\"|\"&ROW(A5),Händelseschemaläggare[UNIKT VÄRDE (BERÄKNAT)],0),3),\"\")","v":""}]
[{"$nulls":4},{"$f":"Tidsintervall!E7","v":"07:00:00"},{"$f":"IFERROR(INDEX(Händelseschemaläggare[],MATCH(DATEVALUE(DatumVär)&Dagsschema[[#This Row],[Tid]],SökDatumOchTid,0),3),\"\")","v":""},null,null,{"$f":"IFERROR(INDEX(Händelseschemaläggare[],MATCH($H$6&\"|\"&ROW(A6),Händelseschemaläggare[UNIKT VÄRDE (BERÄKNAT)],0),2),\"\")","v":""},{"$f":"IFERROR(INDEX(Händelseschemaläggare[],MATCH($H$6&\"|\"&ROW(A6),Händelseschemaläggare[UNIKT VÄRDE (BERÄKNAT)],0),3),\"\")","v":""}]
[{"$nulls":4},{"$f":"Tidsintervall!E8","v":"07:15:00"},{"$f":"IFERROR(INDEX(Händelseschemaläggare[],MATCH(DATEVALUE(DatumVär)&Dagsschema[[#This Row],[Tid]],SökDatumOchTid,0),3),\"\")","v":""},null,{"$f":"IFERROR(TEXT(DATEVALUE(DatumVär)+2,\"DDDD\"),\"\")","v":""},{"$f":"IFERROR(INDEX(Händelseschemaläggare[],MATCH($H$12&\"|\"&ROW(A1),Händelseschemaläggare[UNIKT VÄRDE (BERÄKNAT)],0),2),\"\")","v":""},{"$f":"IFERROR(INDEX(Händelseschemaläggare[],MATCH($H$12&\"|\"&ROW(A1),Händelseschemaläggare[UNIKT VÄRDE (BERÄKNAT)],0),3),\"\")","v":""}]
[{"$nulls":4},{"$f":"Tidsintervall!E9","v":"07:30:00"},{"$f":"IFERROR(INDEX(Händelseschemaläggare[],MATCH(DATEVALUE(DatumVär)&Dagsschema[[#This Row],[Tid]],SökDatumOchTid,0),3),\"\")","v":""},null,{"$f":"IFERROR(TEXT(DATEVALUE(DatumVär)+2,\"D\"),\"\")","v":""},{"$f":"IFERROR(INDEX(Händelseschemaläggare[],MATCH($H$12&\"|\"&ROW(A2),Händelseschemaläggare[UNIKT VÄRDE (BERÄKNAT)],0),2),\"\")","v":""},{"$f":"IFERROR(INDEX(Händelseschemaläggare[],MATCH($H$12&\"|\"&ROW(A2),Händelseschemaläggare[UNIKT VÄRDE (BERÄKNAT)],0),3),\"\")","v":""}]
[null,"VISA SCHEMA",null,null,{"$f":"Tidsintervall!E10","v":"07:45:00"},{"$f":"IFERROR(INDEX(Händelseschemaläggare[],MATCH(DATEVALUE(DatumVär)&Dagsschema[[#This Row],[Tid]],SökDatumOchTid,0),3),\"\")","v":""},null,null,{"$f":"IFERROR(INDEX(Händelseschemaläggare[],MATCH($H$12&\"|\"&ROW(A3),Händelseschemaläggare[UNIKT VÄRDE (BERÄKNAT)],0),2),\"\")","v":""},{"$f":"IFERROR(INDEX(Händelseschemaläggare[],MATCH($H$12&\"|\"&ROW(A3),Händelseschemaläggare[UNIKT VÄRDE (BERÄKNAT)],0),3),\"\")","v":""}]
[{"$nulls":4},{"$f":"Tidsintervall!E11","v":"08:00:00"},{"$f":"IFERROR(INDEX(Händelseschemaläggare[],MATCH(DATEVALUE(DatumVär)&Dagsschema[[#This Row],[Tid]],SökDatumOchTid,0),3),\"\")","v":""},null,{"$f":"IFERROR(DatumVär+2,\"\")","v":""},{"$f":"IFERROR(INDEX(Händelseschemaläggare[],MATCH($H$12&\"|\"&ROW(A4),Händelseschemaläggare[UNIKT VÄRDE (BERÄKNAT)],0),2),\"\")","v":""},{"$f":"IFERROR(INDEX(Händelseschemaläggare[],MATCH($H$12&\"|\"&ROW(A4),Händelseschemaläggare[UNIKT VÄRDE (BERÄKNAT)],0),3),\"\")","v":""}]
[null,"År",null,null,{"$f":"Tidsintervall!E12","v":"08:15:00"},{"$f":"IFERROR(INDEX(Händelseschemaläggare[],MATCH(DATEVALUE(DatumVär)&Dagsschema[[#This Row],[Tid]],SökDatumOchTid,0),3),\"\")","v":""},null,null,{"$f":"IFERROR(INDEX(Händelseschemaläggare[],MATCH($H$12&\"|\"&ROW(A5),Händelseschemaläggare[UNIKT VÄRDE (BERÄKNAT)],0),2),\"\")","v":""},{"$f":"IFERROR(INDEX(Händelseschemaläggare[],MATCH($H$12&\"|\"&ROW(A5),Händelseschemaläggare[UNIKT VÄRDE (BERÄKNAT)],0),3),\"\")","v":""}]
[{"$nulls":4},{"$f":"Tidsintervall!E13","v":"08:30:00"},{"$f":"IFERROR(INDEX(Händelseschemaläggare[],MATCH(DATEVALUE(DatumVär)&Dagsschema[[#This Row],[Tid]],SökDatumOchTid,0),3),\"\")","v":""},null,null,{"$f":"IFERROR(INDEX(Händelseschemaläggare[],MATCH($H$12&\"|\"&ROW(A6),Händelseschemaläggare[UNIKT VÄRDE (BERÄKNAT)],0),2),\"\")","v":""},{"$f":"IFERROR(INDEX(Händelseschemaläggare[],MATCH($H$12&\"|\"&ROW(A6),Händelseschemaläggare[UNIKT VÄRDE (BERÄKNAT)],0),3),\"\")","v":""}]
[null,"Månad",null,null,{"$f":"Tidsintervall!E14","v":"08:45:00"},{"$f":"IFERROR(INDEX(Händelseschemaläggare[],MATCH(DATEVALUE(DatumVär)&Dagsschema[[#This Row],[Tid]],SökDatumOchTid,0),3),\"\")","v":""},null,{"$f":"IFERROR(TEXT(DATEVALUE(DatumVär)+3,\"DDDD\"),\"\")","v":""},{"$f":"IFERROR(INDEX(Händelseschemaläggare[],MATCH($H$18&\"|\"&ROW(A1),Händelseschemaläggare[UNIKT VÄRDE (BERÄKNAT)],0),2),\"\")","v":""},{"$f":"IFERROR(INDEX(Händelseschemaläggare[],MATCH($H$18&\"|\"&ROW(A1),Händelseschemaläggare[UNIKT VÄRDE (BERÄKNAT)],0),3),\"\")","v":""}]
[{"$nulls":4},{"$f":"Tidsintervall!E15","v":"09:00:00"},{"$f":"IFERROR(INDEX(Händelseschemaläggare[],MATCH(DATEVALUE(DatumVär)&Dagsschema[[#This Row],[Tid]],SökDatumOchTid,0),3),\"\")","v":""},null,{"$f":"IFERROR(TEXT(DATEVALUE(DatumVär)+3,\"D\"),\"\")","v":""},{"$f":"IFERROR(INDEX(Händelseschemaläggare[],MATCH($H$18&\"|\"&ROW(A2),Händelseschemaläggare[UNIKT VÄRDE (BERÄKNAT)],0),2),\"\")","v":""},{"$f":"IFERROR(INDEX(Händelseschemaläggare[],MATCH($H$18&\"|\"&ROW(A2),Händelseschemaläggare[UNIKT VÄRDE (BERÄKNAT)],0),3),\"\")","v":""}]
[null,"Dag",null,null,{"$f":"Tidsintervall!E16","v":"09:15:00"},{"$f":"IFERROR(INDEX(Händelseschemaläggare[],MATCH(DATEVALUE(DatumVär)&Dagsschema[[#This Row],[Tid]],SökDatumOchTid,0),3),\"\")","v":""},null,null,{"$f":"IFERROR(INDEX(Händelseschemaläggare[],MATCH($H$18&\"|\"&ROW(A3),Händelseschemaläggare[UNIKT VÄRDE (BERÄKNAT)],0),2),\"\")","v":""},{"$f":"IFERROR(INDEX(Händelseschemaläggare[],MATCH($H$18&\"|\"&ROW(A3),Händelseschemaläggare[UNIKT VÄRDE (BERÄKNAT)],0),3),\"\")","v":""}]
[{"$nulls":4},{"$f":"Tidsintervall!E17","v":"09:30:00"},{"$f":"IFERROR(INDEX(Händelseschemaläggare[],MATCH(DATEVALUE(DatumVär)&Dagsschema[[#This Row],[Tid]],SökDatumOchTid,0),3),\"\")","v":""},null,{"$f":"IFERROR(DatumVär+3,\"\")","v":""},{"$f":"IFERROR(INDEX(Händelseschemaläggare[],MATCH($H$18&\"|\"&ROW(A4),Händelseschemaläggare[UNIKT VÄRDE (BERÄKNAT)],0),2),\"\")","v":""},{"$f":"IFERROR(INDEX(Händelseschemaläggare[],MATCH($H$18&\"|\"&ROW(A4),Händelseschemaläggare[UNIKT VÄRDE (BERÄKNAT)],0),3),\"\")","v":""}]
[null,"REDIGERA SCHEMA",null,null,{"$f":"Tidsintervall!E18","v":"09:45:00"},{"$f":"IFERROR(INDEX(Händelseschemaläggare[],MATCH(DATEVALUE(DatumVär)&Dagsschema[[#This Row],[Tid]],SökDatumOchTid,0),3),\"\")","v":""},null,null,{"$f":"IFERROR(INDEX(Händelseschemaläggare[],MATCH($H$18&\"|\"&ROW(A5),Händelseschemaläggare[UNIKT VÄRDE (BERÄKNAT)],0),2),\"\")","v":""},{"$f":"IFERROR(INDEX(Händelseschemaläggare[],MATCH($H$18&\"|\"&ROW(A5),Händelseschemaläggare[UNIKT VÄRDE (BERÄKNAT)],0),3),\"\")","v":""}]
[{"$nulls":4},{"$f":"Tidsintervall!E19","v":"10:00:00"},{"$f":"IFERROR(INDEX(Händelseschemaläggare[],MATCH(DATEVALUE(DatumVär)&Dagsschema[[#This Row],[Tid]],SökDatumOchTid,0),3),\"\")","v":""},null,null,{"$f":"IFERROR(INDEX(Händelseschemaläggare[],MATCH($H$18&\"|\"&ROW(A6),Händelseschemaläggare[UNIKT VÄRDE (BERÄKNAT)],0),2),\"\")","v":""},{"$f":"IFERROR(INDEX(Händelseschemaläggare[],MATCH($H$18&\"|\"&ROW(A6),Händelseschemaläggare[UNIKT VÄRDE (BERÄKNAT)],0),3),\"\")","v":""}]
[null,"Välj för att redigera tidsintervall",null,null,{"$f":"Tidsintervall!E20","v":"10:15:00"},{"$f":"IFERROR(INDEX(Händelseschemaläggare[],MATCH(DATEVALUE(DatumVär)&Dagsschema[[#This Row],[Tid]],SökDatumOchTid,0),3),\"\")","v":""},null,{"$f":"IFERROR(TEXT(DATEVALUE(DatumVär)+4,\"DDDD\"),\"\")","v":""},{"$f":"IFERROR(INDEX(Händelseschemaläggare[],MATCH($H$24&\"|\"&ROW(A1),Händelseschemaläggare[UNIKT VÄRDE (BERÄKNAT)],0),2),\"\")","v":""},{"$f":"IFERROR(INDEX(Händelseschemaläggare[],MATCH($H$24&\"|\"&ROW(A1),Händelseschemaläggare[UNIKT VÄRDE (BERÄKNAT)],0),3),\"\")","v":""}]
[{"$nulls":4},{"$f":"Tidsintervall!E21","v":"10:30:00"},{"$f":"IFERROR(INDEX(Händelseschemaläggare[],MATCH(DATEVALUE(DatumVär)&Dagsschema[[#This Row],[Tid]],SökDatumOchTid,0),3),\"\")","v":""},null,{"$f":"IFERROR(TEXT(DATEVALUE(DatumVär)+4,\"D\"),\"\")","v":""},{"$f":"IFERROR(INDEX(Händelseschemaläggare[],MATCH($H$24&\"|\"&ROW(A2),Händelseschemaläggare[UNIKT VÄRDE (BERÄKNAT)],0),2),\"\")","v":""},{"$f":"IFERROR(INDEX(Händelseschemaläggare[],MATCH($H$24&\"|\"&ROW(A2),Händelseschemaläggare[UNIKT VÄRDE (BERÄKNAT)],0),3),\"\")","v":""}]
[null,"Välj för att lägga till en ny händelse",null,null,{"$f":"Tidsintervall!E22","v":"10:45:00"},{"$f":"IFERROR(INDEX(Händelseschemaläggare[],MATCH(DATEVALUE(DatumVär)&Dagsschema[[#This Row],[Tid]],SökDatumOchTid,0),3),\"\")","v":""},null,null,{"$f":"IFERROR(INDEX(Händelseschemaläggare[],MATCH($H$24&\"|\"&ROW(A3),Händelseschemaläggare[UNIKT VÄRDE (BERÄKNAT)],0),2),\"\")","v":""},{"$f":"IFERROR(INDEX(Händelseschemaläggare[],MATCH($H$24&\"|\"&ROW(A3),Händelseschemaläggare[UNIKT VÄRDE (BERÄKNAT)],0),3),\"\")","v":""}]
[{"$nulls":4},{"$f":"Tidsintervall!E23","v":"11:00:00"},{"$f":"IFERROR(INDEX(Händelseschemaläggare[],MATCH(DATEVALUE(DatumVär)&Dagsschema[[#This Row],[Tid]],SökDatumOchTid,0),3),\"\")","v":""},null,{"$f":"IFERROR(DatumVär+4,\"\")","v":""},{"$f":"IFERROR(INDEX(Händelseschemaläggare[],MATCH($H$24&\"|\"&ROW(A4),Händelseschemaläggare[UNIKT VÄRDE (BERÄKNAT)],0),2),\"\")","v":""},{"$f":"IFERROR(INDEX(Händelseschemaläggare[],MATCH($H$24&\"|\"&ROW(A4),Händelseschemaläggare[UNIKT VÄRDE (BERÄKNAT)],0),3),\"\")","v":""}]
[null,"MARKERA I SCHEMAT:",null,null,{"$f":"Tidsintervall!E24","v":"11:15:00"},{"$f":"IFERROR(INDEX(Händelseschemaläggare[],MATCH(DATEVALUE(DatumVär)&Dagsschema[[#This Row],[Tid]],SökDatumOchTid,0),3),\"\")","v":""},null,null,{"$f":"IFERROR(INDEX(Händelseschemaläggare[],MATCH($H$24&\"|\"&ROW(A5),Händelseschemaläggare[UNIKT VÄRDE (BERÄKNAT)],0),2),\"\")","v":""},{"$f":"IFERROR(INDEX(Händelseschemaläggare[],MATCH($H$24&\"|\"&ROW(A5),Händelseschemaläggare[UNIKT VÄRDE (BERÄKNAT)],0),3),\"\")","v":""}]
[null,"Paus",null,null,{"$f":"Tidsintervall!E25","v":"11:30:00"},{"$f":"IFERROR(INDEX(Händelseschemaläggare[],MATCH(DATEVALUE(DatumVär)&Dagsschema[[#This Row],[Tid]],SökDatumOchTid,0),3),\"\")","v":""},null,{"$f":"IFERROR(TEXT(DATEVALUE(DatumVär)+5,\"DDDD\"),\"\")","v":""},{"$f":"IFERROR(INDEX(Händelseschemaläggare[],MATCH($H$29&\"|\"&ROW(A1),Händelseschemaläggare[UNIKT VÄRDE (BERÄKNAT)],0),2),\"\")","v":""},{"$f":"IFERROR(INDEX(Händelseschemaläggare[],MATCH($H$29&\"|\"&ROW(A1),Händelseschemaläggare[UNIKT VÄRDE (BERÄKNAT)],0),3),\"\")","v":""}]
[{"$nulls":4},{"$f":"Tidsintervall!E26","v":"11:45:00"},{"$f":"IFERROR(INDEX(Händelseschemaläggare[],MATCH(DATEVALUE(DatumVär)&Dagsschema[[#This Row],[Tid]],SökDatumOchTid,0),3),\"\")","v":""},null,{"$f":"IFERROR(TEXT(DATEVALUE(DatumVär)+5,\"D\"),\"\")","v":""},{"$f":"IFERROR(INDEX(Händelseschemaläggare[],MATCH($H$29&\"|\"&ROW(A2),Händelseschemaläggare[UNIKT VÄRDE (BERÄKNAT)],0),2),\"\")","v":""},{"$f":"IFERROR(INDEX(Händelseschemaläggare[],MATCH($H$29&\"|\"&ROW(A2),Händelseschemaläggare[UNIKT VÄRDE (BERÄKNAT)],0),3),\"\")","v":""}]
[{"$nulls":4},{"$f":"Tidsintervall!E27","v":"12:00:00"},{"$f":"IFERROR(INDEX(Händelseschemaläggare[],MATCH(DATEVALUE(DatumVär)&Dagsschema[[#This Row],[Tid]],SökDatumOchTid,0),3),\"\")","v":""},null,null,{"$f":"IFERROR(INDEX(Händelseschemaläggare[],MATCH($H$29&\"|\"&ROW(A3),Händelseschemaläggare[UNIKT VÄRDE (BERÄKNAT)],0),2),\"\")","v":""},{"$f":"IFERROR(INDEX(Händelseschemaläggare[],MATCH($H$29&\"|\"&ROW(A3),Händelseschemaläggare[UNIKT VÄRDE (BERÄKNAT)],0),3),\"\")","v":""}]
[{"$nulls":4},{"$f":"Tidsintervall!E28","v":"12:15:00"},{"$f":"IFERROR(INDEX(Händelseschemaläggare[],MATCH(DATEVALUE(DatumVär)&Dagsschema[[#This Row],[Tid]],SökDatumOchTid,0),3),\"\")","v":""},null,{"$f":"IFERROR(DatumVär+5,\"\")","v":""},{"$f":"IFERROR(INDEX(Händelseschemaläggare[],MATCH($H$29&\"|\"&ROW(A4),Händelseschemaläggare[UNIKT VÄRDE (BERÄKNAT)],0),2),\"\")","v":""},{"$f":"IFERROR(INDEX(Händelseschemaläggare[],MATCH($H$29&\"|\"&ROW(A4),Händelseschemaläggare[UNIKT VÄRDE (BERÄKNAT)],0),3),\"\")","v":""}]
[{"$nulls":4},{"$f":"Tidsintervall!E29","v":"12:30:00"},{"$f":"IFERROR(INDEX(Händelseschemaläggare[],MATCH(DATEVALUE(DatumVär)&Dagsschema[[#This Row],[Tid]],SökDatumOchTid,0),3),\"\")","v":""},null,null,{"$f":"IFERROR(INDEX(Händelseschemaläggare[],MATCH($H$29&\"|\"&ROW(A5),Händelseschemaläggare[UNIKT VÄRDE (BERÄKNAT)],0),2),\"\")","v":""},{"$f":"IFERROR(INDEX(Händelseschemaläggare[],MATCH($H$29&\"|\"&ROW(A5),Händelseschemaläggare[UNIKT VÄRDE (BERÄKNAT)],0),3),\"\")","v":""}]
[{"$nulls":4},{"$f":"Tidsintervall!E30","v":"12:45:00"},{"$f":"IFERROR(INDEX(Händelseschemaläggare[],MATCH(DATEVALUE(DatumVär)&Dagsschema[[#This Row],[Tid]],SökDatumOchTid,0),3),\"\")","v":""},null,{"$f":"IFERROR(TEXT(DATEVALUE(DatumVär)+6,\"DDDD\"),\"\")","v":""},{"$f":"IFERROR(INDEX(Händelseschemaläggare[],MATCH($H$34&\"|\"&ROW(A1),Händelseschemaläggare[UNIKT VÄRDE (BERÄKNAT)],0),2),\"\")","v":""},{"$f":"IFERROR(INDEX(Händelseschemaläggare[],MATCH($H$34&\"|\"&ROW(A1),Händelseschemaläggare[UNIKT VÄRDE (BERÄKNAT)],0),3),\"\")","v":""}]
[{"$nulls":4},{"$f":"Tidsintervall!E31","v":"13:00:00"},{"$f":"IFERROR(INDEX(Händelseschemaläggare[],MATCH(DATEVALUE(DatumVär)&Dagsschema[[#This Row],[Tid]],SökDatumOchTid,0),3),\"\")","v":""},null,{"$f":"IFERROR(TEXT(DATEVALUE(DatumVär)+6,\"D\"),\"\")","v":""},{"$f":"IFERROR(INDEX(Händelseschemaläggare[],MATCH($H$34&\"|\"&ROW(A2),Händelseschemaläggare[UNIKT VÄRDE (BERÄKNAT)],0),2),\"\")","v":""},{"$f":"IFERROR(INDEX(Händelseschemaläggare[],MATCH($H$34&\"|\"&ROW(A2),Händelseschemaläggare[UNIKT VÄRDE (BERÄKNAT)],0),3),\"\")","v":""}]
[{"$nulls":4},{"$f":"Tidsintervall!E32","v":"13:15:00"},{"$f":"IFERROR(INDEX(Händelseschemaläggare[],MATCH(DATEVALUE(DatumVär)&Dagsschema[[#This Row],[Tid]],SökDatumOchTid,0),3),\"\")","v":""},null,null,{"$f":"IFERROR(INDEX(Händelseschemaläggare[],MATCH($H$34&\"|\"&ROW(A3),Händelseschemaläggare[UNIKT VÄRDE (BERÄKNAT)],0),2),\"\")","v":""},{"$f":"IFERROR(INDEX(Händelseschemaläggare[],MATCH($H$34&\"|\"&ROW(A3),Händelseschemaläggare[UNIKT VÄRDE (BERÄKNAT)],0),3),\"\")","v":""}]
[{"$nulls":4},{"$f":"Tidsintervall!E33","v":"13:30:00"},{"$f":"IFERROR(INDEX(Händelseschemaläggare[],MATCH(DATEVALUE(DatumVär)&Dagsschema[[#This Row],[Tid]],SökDatumOchTid,0),3),\"\")","v":""},null,{"$f":"IFERROR(DatumVär+6,\"\")","v":""},{"$f":"IFERROR(INDEX(Händelseschemaläggare[],MATCH($H$34&\"|\"&ROW(A4),Händelseschemaläggare[UNIKT VÄRDE (BERÄKNAT)],0),2),\"\")","v":""},{"$f":"IFERROR(INDEX(Händelseschemaläggare[],MATCH($H$34&\"|\"&ROW(A4),Händelseschemaläggare[UNIKT VÄRDE (BERÄKNAT)],0),3),\"\")","v":""}]
[{"$nulls":4},{"$f":"Tidsintervall!E34","v":"13:45:00"},{"$f":"IFERROR(INDEX(Händelseschemaläggare[],MATCH(DATEVALUE(DatumVär)&Dagsschema[[#This Row],[Tid]],SökDatumOchTid,0),3),\"\")","v":""},null,null,{"$f":"IFERROR(INDEX(Händelseschemaläggare[],MATCH($H$34&\"|\"&ROW(A5),Händelseschemaläggare[UNIKT VÄRDE (BERÄKNAT)],0),2),\"\")","v":""},{"$f":"IFERROR(INDEX(Händelseschemaläggare[],MATCH($H$34&\"|\"&ROW(A5),Händelseschemaläggare[UNIKT VÄRDE (BERÄKNAT)],0),3),\"\")","v":""}]
[{"$nulls":4},{"$f":"Tidsintervall!E35","v":"14:00:00"},{"$f":"IFERROR(INDEX(Händelseschemaläggare[],MATCH(DATEVALUE(DatumVär)&Dagsschema[[#This Row],[Tid]],SökDatumOchTid,0),3),\"\")","v":""}]
[{"$nulls":4},{"$f":"Tidsintervall!E36","v":"14:15:00"},{"$f":"IFERROR(INDEX(Händelseschemaläggare[],MATCH(DATEVALUE(DatumVär)&Dagsschema[[#This Row],[Tid]],SökDatumOchTid,0),3),\"\")","v":""}]
[{"$nulls":4},{"$f":"Tidsintervall!E37","v":"14:30:00"},{"$f":"IFERROR(INDEX(Händelseschemaläggare[],MATCH(DATEVALUE(DatumVär)&Dagsschema[[#This Row],[Tid]],SökDatumOchTid,0),3),\"\")","v":""}]
[{"$nulls":4},{"$f":"Tidsintervall!E38","v":"14:45:00"},{"$f":"IFERROR(INDEX(Händelseschemaläggare[],MATCH(DATEVALUE(DatumVär)&Dagsschema[[#This Row],[Tid]],SökDatumOchTid,0),3),\"\")","v":""}]
[{"$nulls":4},{"$f":"Tidsintervall!E39","v":"15:00:00"},{"$f":"IFERROR(INDEX(Händelseschemaläggare[],MATCH(DATEVALUE(DatumVär)&Dagsschema[[#This Row],[Tid]],SökDatumOchTid,0),3),\"\")","v":""}]
[{"$nulls":4},{"$f":"Tidsintervall!E40","v":"15:15:00"},{"$f":"IFERROR(INDEX(Händelseschemaläggare[],MATCH(DATEVALUE(DatumVär)&Dagsschema[[#This Row],[Tid]],SökDatumOchTid,0),3),\"\")","v":""}]
[{"$nulls":4},{"$f":"Tidsintervall!E41","v":"15:30:00"},{"$f":"IFERROR(INDEX(Händelseschemaläggare[],MATCH(DATEVALUE(DatumVär)&Dagsschema[[#This Row],[Tid]],SökDatumOchTid,0),3),\"\")","v":""}]
[{"$nulls":4},{"$f":"Tidsintervall!E42","v":"15:45:00"},{"$f":"IFERROR(INDEX(Händelseschemaläggare[],MATCH(DATEVALUE(DatumVär)&Dagsschema[[#This Row],[Tid]],SökDatumOchTid,0),3),\"\")","v":""}]
[{"$nulls":4},{"$f":"Tidsintervall!E43","v":"16:00:00"},{"$f":"IFERROR(INDEX(Händelseschemaläggare[],MATCH(DATEVALUE(DatumVär)&Dagsschema[[#This Row],[Tid]],SökDatumOchTid,0),3),\"\")","v":""}]
[{"$nulls":4},{"$f":"Tidsintervall!E44","v":"16:15:00"},{"$f":"IFERROR(INDEX(Händelseschemaläggare[],MATCH(DATEVALUE(DatumVär)&Dagsschema[[#This Row],[Tid]],SökDatumOchTid,0),3),\"\")","v":""}]
[{"$nulls":4},{"$f":"Tidsintervall!E45","v":"16:30:00"},{"$f":"IFERROR(INDEX(Händelseschemaläggare[],MATCH(DATEVALUE(DatumVär)&Dagsschema[[#This Row],[Tid]],SökDatumOchTid,0),3),\"\")","v":""}]
[{"$nulls":4},{"$f":"Tidsintervall!E46","v":"16:45:00"},{"$f":"IFERROR(INDEX(Händelseschemaläggare[],MATCH(DATEVALUE(DatumVär)&Dagsschema[[#This Row],[Tid]],SökDatumOchTid,0),3),\"\")","v":""}]
[{"$nulls":4},{"$f":"Tidsintervall!E47","v":"17:00:00"},{"$f":"IFERROR(INDEX(Händelseschemaläggare[],MATCH(DATEVALUE(DatumVär)&Dagsschema[[#This Row],[Tid]],SökDatumOchTid,0),3),\"\")","v":""}]
[{"$nulls":4},{"$f":"Tidsintervall!E48","v":"17:15:00"},{"$f":"IFERROR(INDEX(Händelseschemaläggare[],MATCH(DATEVALUE(DatumVär)&Dagsschema[[#This Row],[Tid]],SökDatumOchTid,0),3),\"\")","v":""}]
[{"$nulls":4},{"$f":"Tidsintervall!E49","v":"17:30:00"},{"$f":"IFERROR(INDEX(Händelseschemaläggare[],MATCH(DATEVALUE(DatumVär)&Dagsschema[[#This Row],[Tid]],SökDatumOchTid,0),3),\"\")","v":""}]
[{"$nulls":4},{"$f":"Tidsintervall!E50","v":"17:45:00"},{"$f":"IFERROR(INDEX(Händelseschemaläggare[],MATCH(DATEVALUE(DatumVär)&Dagsschema[[#This Row],[Tid]],SökDatumOchTid,0),3),\"\")","v":""}]
[{"$nulls":4},{"$f":"Tidsintervall!E51","v":"18:00:00"},{"$f":"IFERROR(INDEX(Händelseschemaläggare[],MATCH(DATEVALUE(DatumVär)&Dagsschema[[#This Row],[Tid]],SökDatumOchTid,0),3),\"\")","v":""}]
[{"$nulls":4},{"$f":"Tidsintervall!E52","v":"18:15:00"},{"$f":"IFERROR(INDEX(Händelseschemaläggare[],MATCH(DATEVALUE(DatumVär)&Dagsschema[[#This Row],[Tid]],SökDatumOchTid,0),3),\"\")","v":""}]
[{"$nulls":4},{"$f":"Tidsintervall!E53","v":"18:30:00"},{"$f":"IFERROR(INDEX(Händelseschemaläggare[],MATCH(DATEVALUE(DatumVär)&Dagsschema[[#This Row],[Tid]],SökDatumOchTid,0),3),\"\")","v":""}]
[{"$nulls":4},{"$f":"Tidsintervall!E54","v":"18:45:00"},{"$f":"IFERROR(INDEX(Händelseschemaläggare[],MATCH(DATEVALUE(DatumVär)&Dagsschema[[#This Row],[Tid]],SökDatumOchTid,0),3),\"\")","v":""}]
[{"$nulls":4},{"$f":"Tidsintervall!E55","v":"19:00:00"},{"$f":"IFERROR(INDEX(Händelseschemaläggare[],MATCH(DATEVALUE(DatumVär)&Dagsschema[[#This Row],[Tid]],SökDatumOchTid,0),3),\"\")","v":""}]
[{"$nulls":4},{"$f":"Tidsintervall!E56","v":"19:15:00"},{"$f":"IFERROR(INDEX(Händelseschemaläggare[],MATCH(DATEVALUE(DatumVär)&Dagsschema[[#This Row],[Tid]],SökDatumOchTid,0),3),\"\")","v":""}]
[{"$nulls":4},{"$f":"Tidsintervall!E57","v":"19:30:00"},{"$f":"IFERROR(INDEX(Händelseschemaläggare[],MATCH(DATEVALUE(DatumVär)&Dagsschema[[#This Row],[Tid]],SökDatumOchTid,0),3),\"\")","v":""}]
[{"$nulls":4},{"$f":"Tidsintervall!E58","v":"19:45:00"},{"$f":"IFERROR(INDEX(Händelseschemaläggare[],MATCH(DATEVALUE(DatumVär)&Dagsschema[[#This Row],[Tid]],SökDatumOchTid,0),3),\"\")","v":""}]
[{"$nulls":4},{"$f":"Tidsintervall!E59","v":"20:00:00"},{"$f":"IFERROR(INDEX(Händelseschemaläggare[],MATCH(DATEVALUE(DatumVär)&Dagsschema[[#This Row],[Tid]],SökDatumOchTid,0),3),\"\")","v":""}]
[{"$nulls":4},{"$f":"Tidsintervall!E60","v":"20:15:00"},{"$f":"IFERROR(INDEX(Händelseschemaläggare[],MATCH(DATEVALUE(DatumVär)&Dagsschema[[#This Row],[Tid]],SökDatumOchTid,0),3),\"\")","v":""}]
[{"$nulls":4},{"$f":"Tidsintervall!E61","v":"20:30:00"},{"$f":"IFERROR(INDEX(Händelseschemaläggare[],MATCH(DATEVALUE(DatumVär)&Dagsschema[[#This Row],[Tid]],SökDatumOchTid,0),3),\"\")","v":""}]
[{"$nulls":4},{"$f":"Tidsintervall!E62","v":"20:45:00"},{"$f":"IFERROR(INDEX(Händelseschemaläggare[],MATCH(DATEVALUE(DatumVär)&Dagsschema[[#This Row],[Tid]],SökDatumOchTid,0),3),\"\")","v":""}]
[{"$nulls":4},{"$f":"Tidsintervall!E63","v":"21:00:00"},{"$f":"IFERROR(INDEX(Händelseschemaläggare[],MATCH(DATEVALUE(DatumVär)&Dagsschema[[#This Row],[Tid]],SökDatumOchTid,0),3),\"\")","v":""}]
[{"$nulls":4},{"$f":"Tidsintervall!E64","v":""},{"$f":"IFERROR(INDEX(Händelseschemaläggare[],MATCH(DATEVALUE(DatumVär)&Dagsschema[[#This Row],[Tid]],SökDatumOchTid,0),3),\"\")","v":""}]
[{"$nulls":4},{"$f":"Tidsintervall!E65","v":""},{"$f":"IFERROR(INDEX(Händelseschemaläggare[],MATCH(DATEVALUE(DatumVär)&Dagsschema[[#This Row],[Tid]],SökDatumOchTid,0),3),\"\")","v":""}]
[{"$nulls":4},{"$f":"Tidsintervall!E66","v":""},{"$f":"IFERROR(INDEX(Händelseschemaläggare[],MATCH(DATEVALUE(DatumVär)&Dagsschema[[#This Row],[Tid]],SökDatumOchTid,0),3),\"\")","v":""}]
[{"$nulls":4},{"$f":"Tidsintervall!E67","v":""},{"$f":"IFERROR(INDEX(Händelseschemaläggare[],MATCH(DATEVALUE(DatumVär)&Dagsschema[[#This Row],[Tid]],SökDatumOchTid,0),3),\"\")","v":""}]
[{"$nulls":4},{"$f":"Tidsintervall!E68","v":""},{"$f":"IFERROR(INDEX(Händelseschemaläggare[],MATCH(DATEVALUE(DatumVär)&Dagsschema[[#This Row],[Tid]],SökDatumOchTid,0),3),\"\")","v":""}]
[{"$nulls":4},{"$f":"Tidsintervall!E69","v":""},{"$f":"IFERROR(INDEX(Händelseschemaläggare[],MATCH(DATEVALUE(DatumVär)&Dagsschema[[#This Row],[Tid]],SökDatumOchTid,0),3),\"\")","v":""}]
[{"$nulls":4},{"$f":"Tidsintervall!E70","v":""},{"$f":"IFERROR(INDEX(Händelseschemaläggare[],MATCH(DATEVALUE(DatumVär)&Dagsschema[[#This Row],[Tid]],SökDatumOchTid,0),3),\"\")","v":""}]
[{"$nulls":4},{"$f":"Tidsintervall!E71","v":""},{"$f":"IFERROR(INDEX(Händelseschemaläggare[],MATCH(DATEVALUE(DatumVär)&Dagsschema[[#This Row],[Tid]],SökDatumOchTid,0),3),\"\")","v":""}]
[{"$nulls":4},{"$f":"Tidsintervall!E72","v":""},{"$f":"IFERROR(INDEX(Händelseschemaläggare[],MATCH(DATEVALUE(DatumVär)&Dagsschema[[#This Row],[Tid]],SökDatumOchTid,0),3),\"\")","v":""}]
[{"$nulls":4},{"$f":"Tidsintervall!E73","v":""},{"$f":"IFERROR(INDEX(Händelseschemaläggare[],MATCH(DATEVALUE(DatumVär)&Dagsschema[[#This Row],[Tid]],SökDatumOchTid,0),3),\"\")","v":""}]
[{"$nulls":4},{"$f":"Tidsintervall!E74","v":""},{"$f":"IFERROR(INDEX(Händelseschemaläggare[],MATCH(DATEVALUE(DatumVär)&Dagsschema[[#This Row],[Tid]],SökDatumOchTid,0),3),\"\")","v":""}]
[{"$nulls":4},{"$f":"Tidsintervall!E75","v":""},{"$f":"IFERROR(INDEX(Händelseschemaläggare[],MATCH(DATEVALUE(DatumVär)&Dagsschema[[#This Row],[Tid]],SökDatumOchTid,0),3),\"\")","v":""}]

{"sheet":"Händelseschemaläggare","index":1,"n_rows":15,"n_cols":8,"rows_kept":15,"merged":[[0,1,0,2],[1,1,4,2],[5,1,6,2],[7,1,7,2]]}
[null,"Händelseschemaläggare"]
[null,{"$f":"DAY(DatumVär)","v":{"$error":"#VALUE!"}},null,null,"DATUM","TID","BESKRIVNING","UNIKT VÄRDE (BERÄKNAT)"]
[{"$nulls":4},{"$f":"TODAY()","v":"2022-06-21"},"06:00:00","Stiga upp",{"$f":"Händelseschemaläggare[[#This Row],[DATUM]]&\"|\"&COUNTIF($E$3:E3,E3)","v":"44733|1"}]
[{"$nulls":4},{"$f":"TODAY()","v":"2022-06-21"},"06:30:00","Duscha",{"$f":"Händelseschemaläggare[[#This Row],[DATUM]]&\"|\"&COUNTIF($E$3:E4,E4)","v":"44733|2"}]
[{"$nulls":4},"2022-06-21","07:30:00","Köra till jobbet",{"$f":"Händelseschemaläggare[[#This Row],[DATUM]]&\"|\"&COUNTIF($E$3:E5,E5)","v":"44733|3"}]
[null,{"$f":"TEXT(DatumVär,\"dddd\")","v":"21 JUNE TUESDAY"},null,null,"2022-06-21","08:00:00","Börja jobba",{"$f":"Händelseschemaläggare[[#This Row],[DATUM]]&\"|\"&COUNTIF($E$3:E6,E6)","v":"44733|4"}]
[{"$nulls":4},"2022-06-21","10:00:00","Paus",{"$f":"Händelseschemaläggare[[#This Row],[DATUM]]&\"|\"&COUNTIF($E$3:E7,E7)","v":"44733|5"}]
[null,{"$f":"DatumVär","v":"21 JUNE TUESDAY"},null,null,"2022-06-21","12:00:00","Lunch",{"$f":"Händelseschemaläggare[[#This Row],[DATUM]]&\"|\"&COUNTIF($E$3:E8,E8)","v":"44733|6"}]
[{"$nulls":4},"2022-06-21","13:00:00","Tillbaka till jobbet",{"$f":"Händelseschemaläggare[[#This Row],[DATUM]]&\"|\"&COUNTIF($E$3:E9,E9)","v":"44733|7"}]
[null,"Välj för att redigera tidsintervall",null,null,"2022-06-21","13:30:00","Ringa företaget",{"$f":"Händelseschemaläggare[[#This Row],[DATUM]]&\"|\"&COUNTIF($E$3:E10,E10)","v":"44733|8"}]
[{"$nulls":4},"2022-06-21","15:00:00","Paus",{"$f":"Händelseschemaläggare[[#This Row],[DATUM]]&\"|\"&COUNTIF($E$3:E11,E11)","v":"44733|9"}]
[null,"Välj för att visa dagsschema",null,null,"2022-06-21","17:00:00","Hem",{"$f":"Händelseschemaläggare[[#This Row],[DATUM]]&\"|\"&COUNTIF($E$3:E12,E12)","v":"44733|10"}]
[{"$nulls":4},"2022-06-21","18:00:00","Fotbollsträning",{"$f":"Händelseschemaläggare[[#This Row],[DATUM]]&\"|\"&COUNTIF($E$3:E13,E13)","v":"44733|11"}]
[{"$nulls":4},{"$f":"TODAY()+1","v":"2022-06-22"},"06:30:00","Frukost",{"$f":"Händelseschemaläggare[[#This Row],[DATUM]]&\"|\"&COUNTIF($E$3:E15,E14)","v":"44734|2"}]
[{"$nulls":4},{"$f":"TODAY()+1","v":"2022-06-22"},"07:30:00","Köra till jobbet",{"$f":"Händelseschemaläggare[[#This Row],[DATUM]]&\"|\"&COUNTIF($E$3:E15,E15)","v":"44734|2"}]

{"sheet":"Tidsintervall","index":2,"n_rows":75,"n_cols":5,"rows_kept":75,"merged":[[0,1,0,2],[1,1,1,2],[9,1,9,2]]}
[null,"Tidsintervall"]
[null,"REDIGERA TIDSSCHEMA",null,null,"Tid"]
[{"$nulls":4},{"$f":"Starttid","v":"06:00:00"}]
[null,"Starttid","06:00:00",null,{"$f":"IFERROR(IF($E3+Ökning>Sluttid,\"\",$E3+Ökning),\"\")","v":"06:15:00"}]
[{"$nulls":4},"06:30:00"]
[null,"Intervall","15 MIN",null,{"$f":"IFERROR(IF($E5+Ökning>Sluttid,\"\",$E5+Ökning),\"\")","v":"06:45:00"}]
[{"$nulls":4},"07:00:00"]
[null,"Sluttid","21:00:00",null,"07:15:00"]
[{"$nulls":4},"07:30:00"]
[null,"VISA SCHEMA",null,null,"07:45:00"]
[{"$nulls":4},"08:00:00"]
[null,"Välj för att visa dagsschema",null,null,"08:15:00"]
[{"$nulls":4},"08:30:00"]
[null,"Välj för att lägga till en ny händelse",null,null,"08:45:00"]
[{"$nulls":4},"09:00:00"]
[{"$nulls":4},"09:15:00"]
[{"$nulls":4},"09:30:00"]
[{"$nulls":4},"09:45:00"]
[{"$nulls":4},"10:00:00"]
[{"$nulls":4},"10:15:00"]
[{"$nulls":4},"10:30:00"]
[{"$nulls":4},"10:45:00"]
[{"$nulls":4},"11:00:00"]
[{"$nulls":4},"11:15:00"]
[{"$nulls":4},"11:30:00"]
[{"$nulls":4},"11:45:00"]
[{"$nulls":4},"12:00:00"]
[{"$nulls":4},"12:15:00"]
[{"$nulls":4},"12:30:00"]
[{"$nulls":4},"12:45:00"]
[{"$nulls":4},"13:00:00"]
[{"$nulls":4},"13:15:00"]
[{"$nulls":4},"13:30:00"]
[{"$nulls":4},"13:45:00"]
[{"$nulls":4},"14:00:00"]
[{"$nulls":4},{"$f":"IFERROR(IF($E35+Ökning>Sluttid,\"\",$E35+Ökning),\"\")","v":"14:15:00"}]
[{"$nulls":4},"14:30:00"]
[{"$nulls":4},"14:45:00"]
[{"$nulls":4},"15:00:00"]
[{"$nulls":4},"15:15:00"]
[{"$nulls":4},"15:30:00"]
[{"$nulls":4},"15:45:00"]
[{"$nulls":4},"16:00:00"]
[{"$nulls":4},"16:15:00"]
[{"$nulls":4},"16:30:00"]
[{"$nulls":4},"16:45:00"]
[{"$nulls":4},"17:00:00"]
[{"$nulls":4},"17:15:00"]
[{"$nulls":4},"17:30:00"]
[{"$nulls":4},"17:45:00"]
[{"$nulls":4},"18:00:00"]
[{"$nulls":4},"18:15:00"]
[{"$nulls":4},"18:30:00"]
[{"$nulls":4},"18:45:00"]
[{"$nulls":4},"19:00:00"]
[{"$nulls":4},"19:15:00"]
[{"$nulls":4},"19:30:00"]
[{"$nulls":4},"19:45:00"]
[{"$nulls":4},"20:00:00"]
[{"$nulls":4},"20:15:00"]
[{"$nulls":4},"20:30:00"]
[{"$nulls":4},"20:45:00"]
[{"$nulls":4},"21:00:00"]
[{"$nulls":4},""]
[{"$nulls":4},""]
[{"$nulls":4},""]
[{"$nulls":4},""]
[{"$nulls":4},{"$f":"IFERROR(IF($E67+Ökning>Sluttid,\"\",$E67+Ökning),\"\")","v":""}]
[{"$nulls":4},""]
[{"$nulls":4},""]
[{"$nulls":4},""]
[{"$nulls":4},""]
[{"$nulls":4},""]
[{"$nulls":4},""]
[{"$nulls":4},""]